fUSD/lending_fUSD_20260514
["ID","MTS","AMOUNT","RATE_DAILY","PERIOD"]
[422202954,1778689833000,-499.25011,0.0001452,2]
[422202951,1778689833000,-11600.0,0.000145,5]
[422202958,1778689833000,-150.0,0.00014521,2]
[422202957,1778689833000,-559.4850956,0.00014521,2]
[422202960,1778689833000,-150.0,0.00014521,2]
[422202959,1778689833000,-150.0,0.00014521,2]
[422202961,1778689833000,-252.82730704,0.00014521,2]
[422202965,1778689833000,-500.0,0.00014521,2]
[422202938,1778689833000,-150.0,0.00014352,2]
[422202962,1778689833000,-500.0,0.00014521,2]
[422202956,1778689833000,-500.0,0.00014521,2]
[422202936,1778689833000,-150.0,0.00014344,2]
[422202925,1778689833000,-343.14,0.00014233,2]
[422202946,1778689833000,-7802.45852427,0.0001443,2]
[422202963,1778689833000,-500.0,0.00014521,2]
[422202911,1778689833000,-150.0,0.00014064,2]
[422202921,1778689833000,-150.0,0.0001413,2]
[422202922,1778689833000,-17478.24626701,0.00014179,2]
[422202912,1778689833000,-150.0,0.00014087,2]
[422202918,1778689833000,-250.0,0.0001409,2]
[422202916,1778689833000,-300.0,0.0001409,2]
[422202919,1778689833000,-166.66,0.0001411,2]
[422202914,1778689833000,-300.0,0.0001409,2]
[422202915,1778689833000,-300.0,0.0001409,2]
[422202913,1778689833000,-300.0,0.0001409,2]
[422202917,1778689833000,-300.0,0.0001409,2]
[422202920,1778689833000,-150.0,0.00014122,2]
[422202923,1778689833000,-150.0,0.00014179,2]
[422202924,1778689833000,-7802.45852433,0.00014195,2]
[422202926,1778689833000,-150.0,0.00014237,2]
[422202927,1778689833000,-150.0,0.00014237,2]
[422202929,1778689833000,-345.54391253,0.00014252,2]
[422202933,1778689833000,-404.375426,0.00014295,2]
[422202931,1778689833000,-7802.45852427,0.00014273,2]
[422202930,1778689833000,-15701.1468,0.00014272,2]
[422202932,1778689833000,-150.0,0.00014295,2]
[422202928,1778689833000,-166.66,0.00014247,2]
[422202935,1778689833000,-5118.31754091,0.00014301,2]
[422202945,1778689833000,-150.0,0.0001441,2]
[422202934,1778689833000,-3800.0,0.000143,5]
[422202967,1778689833000,-176.32486522,0.00014521,2]
[422203001,1778689833000,-150.0,0.00014583,2]
[422202968,1778689833000,-167.83513648,0.00014521,2]
[422202997,1778689833000,-245.4533533,0.0001455,7]
[422203000,1778689833000,-343.14,0.00014572,2]
[422202999,1778689833000,-509.49,0.00014568,2]
[422203002,1778689833000,-7802.45852427,0.00014587,2]
[422203014,1778689833000,-17478.24626701,0.0001472,2]
[422203005,1778689833000,-150.0,0.0001464,2]
[422203004,1778689833000,-201.75301911,0.00014619,2]
[422203009,1778689833000,-150.0,0.00014698,2]
[422203006,1778689833000,-7802.45852427,0.00014665,2]
[422203003,1778689833000,-15500.0,0.000146,5]
[422203007,1778689833000,-150.0,0.00014687,2]
[422203011,1778689833000,-2823.0,0.000147,2]
[422203012,1778689833000,-161.37,0.00014715,2]
[422203008,1778689833000,-238.23413703,0.00014694,2]
[422203010,1778689833000,-19300.0,0.000147,5]
[422203015,1778689833000,-7802.45852427,0.00014743,2]
[422203018,1778689833000,-150.0,0.00014772,2]
[422203020,1778689833000,-150.0,0.00014813,2]
[422203016,1778689833000,-150.85187143,0.00014755,2]
[422203019,1778689833000,-3800.0,0.000148,5]
[422203017,1778689833000,-150.0,0.00014756,2]
[422203023,1778689833000,-500.0,0.0001483,2]
[422203021,1778689833000,-7802.45852427,0.00014822,2]
[422203022,1778689833000,-210.51584055,0.0001483,2]
[422202964,1778689833000,-500.0,0.00014521,2]
[422202993,1778689833000,-12135.02382429,0.00014539,2]
[422202995,1778689833000,-530.85534742,0.0001455,7]
[422203013,1778689833000,-166.73,0.00014716,2]
[422202992,1778689833000,-498.17682034,0.00014539,2]
[422202969,1778689833000,-500.0,0.00014521,2]
[422202998,1778689833000,-150.0,0.00014558,2]
[422202972,1778689833000,-500.0,0.00014521,2]
[422202970,1778689833000,-500.0,0.00014521,2]
[422202971,1778689833000,-500.0,0.00014521,2]
[422202974,1778689833000,-150.0,0.00014521,2]
[422202975,1778689833000,-500.0,0.00014521,2]
[422202973,1778689833000,-500.0,0.00014521,2]
[422202977,1778689833000,-500.0,0.00014521,2]
[422202978,1778689833000,-150.0,0.00014521,2]
[422202979,1778689833000,-150.0,0.00014521,2]
[422202986,1778689833000,-250.0,0.00014521,2]
[422202981,1778689833000,-150.0,0.00014521,2]
[422202976,1778689833000,-150.0,0.00014521,2]
[422202984,1778689833000,-150.0,0.00014521,2]
[422202994,1778689833000,-5343.22244272,0.00014539,2]
[422202982,1778689833000,-150.0,0.00014521,2]
[422202991,1778689833000,-1672.61888549,0.00014539,2]
[422202983,1778689833000,-500.0,0.00014521,2]
[422202985,1778689833000,-500.0,0.00014521,2]
[422202989,1778689833000,-273.0,0.00014521,2]
[422202996,1778689833000,-272.24024367,0.0001455,7]
[422202988,1778689833000,-500.0,0.00014521,2]
[422202987,1778689833000,-500.0,0.00014521,2]
[422202990,1778689833000,-150.0,0.00014525,2]
[422202980,1778689833000,-500.0,0.00014521,2]
[422203038,1778689834000,-2464.804,0.00014871,2]
[422203046,1778689834000,-500.0,0.00014899,2]
[422203045,1778689834000,-500.0,0.00014899,2]
[422203044,1778689834000,-500.0,0.00014899,2]
[422203041,1778689834000,-207.185,0.00014877,2]
[422203039,1778689834000,-150.0,0.00014871,2]
[422203043,1778689834000,-500.0,0.00014899,2]
[422203040,1778689834000,-1000.0,0.00014876,2]
[422203042,1778689834000,-1000.0,0.00014884,2]
[422203051,1778689834000,-500.2665976,0.00014899,2]
[422203037,1778689834000,-496.38,0.00014857,2]
[422203035,1778689834000,-393.0,0.00014851,2]
[422203024,1778689834000,-500.0,0.0001483,2]
[422203032,1778689834000,-5000.0,0.00014846,2]
[422203031,1778689834000,-150.0,0.00014844,2]
[422203034,1778689834000,-1247.82977324,0.0001485,2]
[422203030,1778689834000,-298.22225097,0.0001483,2]
[422203033,1778689834000,-496.38,0.00014848,2]
[422203029,1778689834000,-150.0,0.0001483,2]
[422203027,1778689834000,-150.0,0.0001483,2]
[422203025,1778689834000,-590.18579992,0.0001483,2]
[422203028,1778689834000,-150.0,0.0001483,2]
[422203026,1778689834000,-189.67110643,0.0001483,2]
[422203052,1778689834000,-500.0,0.00014899,2]
[422203036,1778689834000,-1000.0,0.00014852,2]
[422203050,1778689834000,-500.0,0.00014899,2]
[422203068,1778689834000,-1254.41808677,0.000149,2]
[422203049,1778689834000,-500.81977375,0.00014899,2]
[422203074,1778689834000,-1603.63089674,0.000149,2]
[422203073,1778689834000,-6431.4067254,0.000149,2]
[422203047,1778689834000,-500.0,0.00014899,2]
[422203077,1778689834000,-507.81611191,0.000149,2]
[422203071,1778689834000,-1047.83898443,0.000149,2]
[422203072,1778689834000,-3950.8655235,0.000149,2]
[422203075,1778689834000,-208.6780413,0.000149,2]
[422203076,1778689834000,-1539.42215403,0.000149,2]
[422203069,1778689834000,-559.92859259,0.000149,2]
[422203066,1778689834000,-3800.0,0.000149,5]
[422203064,1778689834000,-2256.8907,0.000149,2]
[422203065,1778689834000,-527.81015501,0.000149,2]
[422203070,1778689834000,-593.58560363,0.00013637,2]
[422203062,1778689834000,-198.20883558,0.000149,2]
[422203067,1778689834000,-4233.78835432,0.000149,2]
[422203056,1778689834000,-500.0,0.00014899,2]
[422203053,1778689834000,-500.0,0.00014899,2]
[422203055,1778689834000,-500.0,0.00014899,2]
[422203054,1778689834000,-500.0,0.00014899,2]
[422203048,1778689834000,-500.0,0.00014899,2]
[422203058,1778689834000,-500.0,0.00014899,2]
[422203059,1778689834000,-500.0,0.00014899,2]
[422203061,1778689834000,-635.18083882,0.00014899,2]
[422203063,1778689834000,-10000.0,0.000149,2]
[422203060,1778689834000,-500.0,0.00014899,2]
[422203057,1778689834000,-500.0,0.00014899,2]
[422203081,1778689837000,-394.25,0.000149,2]
[422203080,1778689837000,-797.26,0.000149,2]
[422203089,1778689838000,-219.85468374,0.00014924,2]
[422203099,1778689838000,-500.0,0.00014945,2]
[422203093,1778689838000,-2515.0,0.00014935,5]
[422203096,1778689838000,-500.0,0.00014945,2]
[422203104,1778689838000,-500.0,0.00014945,2]
[422203095,1778689838000,-500.0,0.00014945,2]
[422203094,1778689838000,-500.0,0.00014945,2]
[422203084,1778689838000,-1000.0,0.0001491,2]
[422203085,1778689838000,-343.14,0.00014911,2]
[422203090,1778689838000,-266.0,0.00014926,2]
[422203091,1778689838000,-150.0,0.00014929,2]
[422203088,1778689838000,-1000.0,0.00014917,2]
[422203087,1778689838000,-200.0,0.00014914,2]
[422203083,1778689838000,-286.4520375,0.00014906,2]
[422203082,1778689838000,-4563.71025833,0.000149,2]
[422203100,1778689838000,-191.50379649,0.00014945,2]
[422203092,1778689838000,-1000.0,0.00014932,2]
[422203098,1778689838000,-500.0,0.00014945,2]
[422203086,1778689838000,-1000.0,0.00014912,2]
[422203101,1778689838000,-500.0,0.00014945,2]
[422203097,1778689838000,-500.0,0.00014945,2]
[422203131,1778689838000,-30595.28217675,0.00014945,2]
[422203128,1778689838000,-29738.35725437,0.00014945,2]
[422203126,1778689838000,-16976.30528336,0.00014945,2]
[422203117,1778689838000,-500.0,0.00014945,2]
[422203122,1778689838000,-500.0,0.00014945,2]
[422203118,1778689838000,-500.0,0.00014945,2]
[422203133,1778689838000,-6898.67680909,0.00014945,2]
[422203115,1778689838000,-500.0,0.00014945,2]
[422203111,1778689838000,-431.69745624,0.00014945,2]
[422203120,1778689838000,-500.0,0.00014945,2]
[422203106,1778689838000,-500.0,0.00014945,2]
[422203124,1778689838000,-949.807276,0.00014945,2]
[422203107,1778689838000,-500.0,0.00014945,2]
[422203105,1778689838000,-500.0,0.00014945,2]
[422203113,1778689838000,-526.65,0.00014945,2]
[422203103,1778689838000,-500.0,0.00014945,2]
[422203102,1778689838000,-500.0,0.00014945,2]
[422203109,1778689838000,-500.0,0.00014945,2]
[422203342,1778689839000,-173.22904171,0.00014945,2]
[422203344,1778689839000,-500.0,0.00014945,2]
[422203340,1778689839000,-130718.33906278,0.00014945,2]
[422203332,1778689839000,-1019.43263965,0.00014945,2]
[422203352,1778689839000,-12954.0639157,0.00014946,2]
[422203356,1778689839000,-186.4,0.00014946,2]
[422203359,1778689839000,-186.4,0.00014946,2]
[422203354,1778689839000,-186.4,0.00014946,2]
[422203418,1778689840000,-500.0,0.00014999,2]
[422203423,1778689840000,-500.0,0.00014999,2]
[422203425,1778689840000,-500.0,0.00014999,2]
[422203428,1778689840000,-500.0,0.00014999,2]
[422203432,1778689840000,-500.0,0.00014999,2]
[422203434,1778689840000,-306.6696981,0.00014999,2]
[422203436,1778689840000,-500.0,0.00014999,2]
[422203430,1778689840000,-500.0,0.00014999,2]
[422203439,1778689840000,-500.0,0.00014999,2]
[422203440,1778689840000,-500.0,0.00014999,2]
[422203442,1778689840000,-502.56578458,0.00014999,2]
[422203451,1778689840000,-500.0,0.00014999,2]
[422203456,1778689840000,-500.0,0.00014999,2]
[422203444,1778689840000,-500.0,0.00014999,2]
[422203447,1778689840000,-500.0,0.00014999,2]
[422203449,1778689840000,-233.99417586,0.00014999,2]
[422203458,1778689840000,-505.20982406,0.00014999,2]
[422203460,1778689840000,-500.0,0.00014999,2]
[422203462,1778689840000,-500.0,0.00014999,2]
[422203467,1778689840000,-537.71298597,0.00014999,2]
[422203478,1778689840000,-192.0106329,0.00014999,2]
[422203471,1778689840000,-500.0,0.00014999,2]
[422203476,1778689840000,-500.0,0.00014999,2]
[422203421,1778689840000,-191.02515746,0.00014999,2]
[422203453,1778689840000,-500.0,0.00014999,2]
[422203415,1778689840000,-500.0,0.00014999,2]
[422203378,1778689840000,-521.07709,0.0001497,2]
[422203405,1778689840000,-1000.0,0.00014994,2]
[422203364,1778689840000,-38321.1983185,0.00014946,2]
[422203366,1778689840000,-62714.8628741,0.00014946,2]
[422203360,1778689840000,-186.4,0.00014946,2]
[422203363,1778689840000,-186.4,0.00014946,2]
[422203368,1778689840000,-21566.1549265,0.00014946,2]
[422203381,1778689840000,-683.2,0.00014971,2]
[422203372,1778689840000,-521.07708,0.0001495,2]
[422203370,1778689840000,-7634.7476919,0.00014946,2]
[422203383,1778689840000,-970.14,0.00014971,2]
[422203386,1778689840000,-496.38,0.00014974,2]
[422203390,1778689840000,-248.07400725,0.00014986,2]
[422203376,1778689840000,-1000.0,0.00014956,2]
[422203392,1778689840000,-202.66399536,0.00014986,2]
[422203379,1778689840000,-1000.0,0.0001497,2]
[422203482,1778689840000,-500.0,0.00014999,2]
[422203388,1778689840000,-218.05791428,0.00014986,2]
[422203374,1778689840000,-521.07709,0.0001495,2]
[422203394,1778689840000,-286.62405591,0.00014986,2]
[422203397,1778689840000,-271.31136747,0.00014986,2]
[422203399,1778689840000,-481.05073256,0.0001499,2]
[422203401,1778689840000,-481.05073256,0.0001499,2]
[422203403,1778689840000,-481.05073256,0.0001499,2]
[422203409,1778689840000,-517.33826701,0.00014999,5]
[422203413,1778689840000,-500.0,0.00014999,2]
[422203407,1778689840000,-151.0,0.00014997,2]
[422203411,1778689840000,-500.0,0.00014999,2]
[422203480,1778689840000,-507.77368398,0.00014999,2]
[422203494,1778689840000,-500.0,0.00014999,2]
[422203484,1778689840000,-500.0,0.00014999,2]
[422203542,1778689840000,-526.65,0.00014999,2]
[422203545,1778689840000,-526.65,0.00014999,2]
[422203557,1778689840000,-500.0,0.00014999,2]
[422203469,1778689840000,-500.0,0.00014999,2]
[422203551,1778689840000,-500.0,0.00014999,2]
[422203549,1778689840000,-500.0,0.00014999,2]
[422203555,1778689840000,-542.23182778,0.00014999,2]
[422203547,1778689840000,-526.86333488,0.00014999,2]
[422203559,1778689840000,-500.0,0.00014999,2]
[422203562,1778689840000,-500.0,0.00014999,2]
[422203564,1778689840000,-500.0,0.00014999,2]
[422203566,1778689840000,-500.0,0.00014999,2]
[422203578,1778689840000,-500.0,0.00014999,2]
[422203577,1778689840000,-500.0,0.00014999,2]
[422203573,1778689840000,-500.0,0.00014999,2]
[422203575,1778689840000,-384.60584742,0.00014999,2]
[422203569,1778689840000,-446.6236523,0.00014999,2]
[422203580,1778689840000,-500.0,0.00014999,2]
[422203571,1778689840000,-500.0,0.00014999,2]
[422203583,1778689840000,-500.0,0.00014999,2]
[422203585,1778689840000,-500.0,0.00014999,2]
[422203589,1778689840000,-500.0,0.00014999,2]
[422203591,1778689840000,-341.43294704,0.00014999,2]
[422203587,1778689840000,-500.0,0.00014999,2]
[422203593,1778689840000,-500.0,0.00014999,2]
[422203540,1778689840000,-526.65,0.00014999,2]
[422203538,1778689840000,-526.65,0.00014999,2]
[422203553,1778689840000,-500.0,0.00014999,2]
[422203534,1778689840000,-526.65,0.00014999,2]
[422203465,1778689840000,-500.0,0.00014999,2]
[422203473,1778689840000,-500.0,0.00014999,2]
[422203486,1778689840000,-500.0,0.00014999,2]
[422203488,1778689840000,-500.0,0.00014999,2]
[422203492,1778689840000,-500.0,0.00014999,2]
[422203490,1778689840000,-500.0,0.00014999,2]
[422203536,1778689840000,-526.65,0.00014999,2]
[422203500,1778689840000,-500.0,0.00014999,2]
[422203504,1778689840000,-526.65,0.00014999,2]
[422203498,1778689840000,-500.0,0.00014999,2]
[422203506,1778689840000,-526.65,0.00014999,2]
[422203508,1778689840000,-526.65,0.00014999,2]
[422203496,1778689840000,-500.0,0.00014999,2]
[422203502,1778689840000,-509.52,0.00014999,2]
[422203510,1778689840000,-526.65,0.00014999,2]
[422203524,1778689840000,-526.65,0.00014999,2]
[422203516,1778689840000,-526.65,0.00014999,2]
[422203520,1778689840000,-526.65,0.00014999,2]
[422203532,1778689840000,-526.65,0.00014999,2]
[422203518,1778689840000,-526.65,0.00014999,2]
[422203528,1778689840000,-526.65,0.00014999,2]
[422203514,1778689840000,-526.65,0.00014999,2]
[422203522,1778689840000,-526.65,0.00014999,2]
[422203526,1778689840000,-526.65,0.00014999,2]
[422203512,1778689840000,-526.65,0.00014999,2]
[422203530,1778689840000,-526.65,0.00014999,2]
[422203601,1778689841000,-300.0,0.00014999,2]
[422203605,1778689841000,-150.0,0.00015,2]
[422203597,1778689841000,-500.0,0.00014999,2]
[422203595,1778689841000,-646.91952127,0.00014999,2]
[422203599,1778689841000,-300.0,0.00014999,2]
[422203619,1778689841000,-327.66026881,0.00015,2]
[422203607,1778689841000,-150.0,0.00015,2]
[422203609,1778689841000,-160425.12039365,0.00015,2]
[422203612,1778689841000,-1075.38158507,0.00015,2]
[422203615,1778689841000,-481350.99091596,0.00015,2]
[422203603,1778689841000,-2793.0,0.00015,5]
[422203849,1778689842000,-177665.8754969,0.00015,2]
[422203844,1778689842000,-1034.42411951,0.00014647,2]
[422203846,1778689842000,-6061.75588049,0.00015,2]
[422203890,1778689843000,-313.48258401,0.00015,2]
[422203905,1778689843000,-339.12719406,0.00015,2]
[422203892,1778689843000,-22695.29516433,0.00015,2]
[422203998,1778689845000,-826.35664941,0.00015,2]
[422203997,1778689845000,-15749.57061191,0.00015,2]
[422203999,1778689846000,-1418.79999,0.00015,2]
[422204000,1778689846000,-304.46281938,0.00015,2]
[422204017,1778690900000,5530.0,0.00012,3]
[422204018,1778690932000,5530.0,0.00012,3]
[422204019,1778690963000,5530.0,0.000118,3]
[422204020,1778690995000,5530.0,0.000118,3]
[422204021,1778691026000,5530.0,0.000116,3]
[422204034,1778691031000,-150.0,0.00012709,2]
[422204032,1778691031000,-420.0,0.00012413,2]
[422204033,1778691031000,-1680.0,0.00012429,2]
[422204030,1778691031000,-250.0,0.00012038,2]
[422204031,1778691031000,-5530.0,0.000121,5]
[422204024,1778691031000,-215.91,0.00010338,2]
[422204027,1778691031000,-1200.0,0.00011299,2]
[422204025,1778691031000,-93226.0,0.000111,2]
[422204026,1778691031000,-300.0,0.00011299,2]
[422204036,1778691031000,-255.0,0.00012775,2]
[422204029,1778691031000,-150.0,0.00011699,2]
[422204035,1778691031000,-208.27114069,0.00012755,2]
[422204028,1778691031000,-250.0,0.00011521,2]
[422204038,1778691031000,-1844.15,0.0001294,2]
[422204037,1778691031000,-575.91,0.00012931,2]
[422204048,1778691031000,-202.66399536,0.00013488,2]
[422204049,1778691031000,-248.07400725,0.00013488,2]
[422204047,1778691031000,-218.05791428,0.00013488,2]
[422204046,1778691031000,-200.0,0.00013401,2]
[422204045,1778691031000,-1029.88,0.00013349,2]
[422204050,1778691031000,-150.0,0.00013488,2]
[422204042,1778691031000,-1011.76,0.00013055,2]
[422204043,1778691031000,-276.81,0.00013072,2]
[422204041,1778691031000,-2000.0,0.0001304,2]
[422204040,1778691031000,-27331.1,0.00013033,2]
[422204044,1778691031000,-150.0,0.00013241,2]
[422204039,1778691031000,-160.0,0.00012962,2]
[422204086,1778691032000,-150.0,0.00013862,2]
[422204069,1778691032000,-500.0,0.00013698,2]
[422204071,1778691032000,-500.0,0.00013698,2]
[422204070,1778691032000,-500.0,0.00013698,2]
[422204073,1778691032000,-500.0,0.00013698,2]
[422204075,1778691032000,-500.0,0.00013698,2]
[422204076,1778691032000,-500.0,0.00013698,2]
[422204072,1778691032000,-507.77368398,0.00013698,2]
[422204078,1778691032000,-2500.0,0.00013699,2]
[422204079,1778691032000,-166.66,0.00013699,2]
[422204080,1778691032000,-200.0,0.00013699,2]
[422204067,1778691032000,-206.09465376,0.00013698,2]
[422204074,1778691032000,-500.0,0.00013698,2]
[422204065,1778691032000,-500.0,0.00013698,2]
[422204056,1778691032000,-156.15619026,0.00013538,2]
[422204066,1778691032000,-500.0,0.00013698,2]
[422204060,1778691032000,-150.0,0.00013654,2]
[422204057,1778691032000,-165.52,0.00013606,2]
[422204061,1778691032000,-2351.0,0.00013672,2]
[422204054,1778691032000,-286.62405591,0.00013488,2]
[422204062,1778691032000,-150.0,0.00013675,2]
[422204064,1778691032000,-500.0,0.00013698,2]
[422204059,1778691032000,-587.0,0.00013636,2]
[422204063,1778691032000,-1029.88,0.00013683,2]
[422204052,1778691032000,-150.0,0.00013488,2]
[422204053,1778691032000,-271.31136747,0.00013488,2]
[422204051,1778691032000,-150.0,0.00013488,2]
[422204087,1778691032000,-2200.0,0.000139,5]
[422204068,1778691032000,-500.0,0.00013698,2]
[422204085,1778691032000,-166.66,0.00013836,2]
[422204077,1778691032000,-500.0,0.00013698,2]
[422204082,1778691032000,-1500.0,0.000138,5]
[422204083,1778691032000,-168.13,0.0001381,2]
[422204114,1778691032000,-622.21189025,0.000144,2]
[422204112,1778691032000,-473.9923,0.000144,2]
[422204109,1778691032000,-452.40870432,0.000144,2]
[422204108,1778691032000,-5000.0,0.000144,2]
[422204111,1778691032000,-1145.50795546,0.000144,2]
[422204106,1778691032000,-168.13,0.0001438,2]
[422204110,1778691032000,-5960.51264507,0.000144,2]
[422204113,1778691032000,-316.068,0.000144,2]
[422204105,1778691032000,-1029.88,0.0001435,2]
[422204102,1778691032000,-166.66,0.00014247,2]
[422204103,1778691032000,-801.643,0.00014282,2]
[422204104,1778691032000,-150.0,0.0001432,2]
[422204101,1778691032000,-150.0,0.00014237,2]
[422204096,1778691032000,-500.0,0.00014104,2]
[422204107,1778691032000,-166.66,0.00014384,2]
[422204095,1778691032000,-500.0,0.00014104,2]
[422204097,1778691032000,-512.56,0.00014104,2]
[422204081,1778691032000,-700.0,0.000137,5]
[422204084,1778691032000,-150.0,0.00013821,2]
[422204090,1778691032000,-150.0,0.00013987,2]
[422204100,1778691032000,-2500.0,0.00014167,2]
[422204091,1778691032000,-1029.88,0.00014016,2]
[422204088,1778691032000,-433.0,0.00013945,2]
[422204089,1778691032000,-166.66,0.00013973,2]
[422204093,1778691032000,-150.0,0.0001405,2]
[422204094,1778691032000,-500.0,0.00014104,2]
[422204099,1778691032000,-150.0,0.00014154,2]
[422204098,1778691032000,-166.66,0.0001411,2]
[422204092,1778691032000,-496.39,0.0001405,2]
[422204142,1778691038000,-500.0,0.00014476,2]
[422204143,1778691038000,-500.0,0.00014476,2]
[422204144,1778691038000,-525.38759367,0.00014476,2]
[422204147,1778691038000,-500.0,0.00014476,2]
[422204148,1778691038000,-500.0,0.00014476,2]
[422204141,1778691038000,-500.0,0.00014476,2]
[422204150,1778691038000,-500.0,0.00014476,2]
[422204146,1778691038000,-500.0,0.00014476,2]
[422204149,1778691038000,-500.0,0.00014476,2]
[422204145,1778691038000,-500.0,0.00014476,2]
[422204159,1778691038000,-500.0,0.00014476,2]
[422204152,1778691038000,-500.0,0.00014476,2]
[422204153,1778691038000,-500.0,0.00014476,2]
[422204158,1778691038000,-500.0,0.00014476,2]
[422204164,1778691038000,-500.0,0.00014486,2]
[422204156,1778691038000,-500.0,0.00014476,2]
[422204157,1778691038000,-500.0,0.00014476,2]
[422204161,1778691038000,-500.0,0.00014486,2]
[422204154,1778691038000,-500.0,0.00014476,2]
[422204162,1778691038000,-500.0,0.00014486,2]
[422204140,1778691038000,-500.0,0.00014476,2]
[422204151,1778691038000,-500.0,0.00014476,2]
[422204139,1778691038000,-500.0,0.00014476,2]
[422204123,1778691038000,-5960.51264498,0.00014456,2]
[422204136,1778691038000,-500.0,0.00014476,2]
[422204160,1778691038000,-500.0,0.00014486,2]
[422204115,1778691038000,-200.0,0.000137,5]
[422204121,1778691038000,-8686.43927534,0.0001441,2]
[422204119,1778691038000,-1139.85935725,0.000144,2]
[422204116,1778691038000,-400.0,0.000138,5]
[422204120,1778691038000,-1449.43501779,0.000144,2]
[422204122,1778691038000,-150.0,0.00014424,2]
[422204126,1778691038000,-500.0,0.00014471,2]
[422204118,1778691038000,-642.94843378,0.000139,5]
[422204125,1778691038000,-500.0,0.00014471,2]
[422204124,1778691038000,-350.0,0.0001446,2]
[422204127,1778691038000,-502.56578458,0.00014471,2]
[422204128,1778691038000,-500.0,0.00014471,2]
[422204129,1778691038000,-500.0,0.00014471,2]
[422204131,1778691038000,-307.2256278,0.00014476,2]
[422204133,1778691038000,-500.0,0.00014476,2]
[422204134,1778691038000,-464.39793361,0.00014476,2]
[422204132,1778691038000,-500.0,0.00014476,2]
[422204130,1778691038000,-3697.63950293,0.00014471,2]
[422204135,1778691038000,-500.0,0.00014476,2]
[422204137,1778691038000,-500.0,0.00014476,2]
[422204138,1778691038000,-500.0,0.00014476,2]
[422204155,1778691038000,-500.0,0.00014476,2]
[422204117,1778691038000,-57.05156622,0.000139,5]
[422204165,1778691038000,-500.0,0.00014486,2]
[422204203,1778691038000,-500.0,0.00014499,2]
[422204204,1778691038000,-500.0,0.00014499,2]
[422204192,1778691038000,-500.0,0.00014499,2]
[422204194,1778691038000,-500.0,0.00014499,2]
[422204197,1778691038000,-500.0,0.00014499,2]
[422204199,1778691038000,-500.0,0.00014499,2]
[422204196,1778691038000,-191.02515746,0.00014499,2]
[422204195,1778691038000,-500.0,0.00014499,2]
[422204198,1778691038000,-500.0,0.00014499,2]
[422204200,1778691038000,-500.0,0.00014499,2]
[422204202,1778691038000,-500.0,0.00014499,2]
[422204201,1778691038000,-150.0,0.00014499,2]
[422204206,1778691038000,-500.0,0.00014499,2]
[422204205,1778691038000,-500.0,0.00014499,2]
[422204213,1778691038000,-766.39805676,0.000145,2]
[422204207,1778691038000,-500.0,0.00014499,2]
[422204212,1778691038000,-1057.46809778,0.000145,2]
[422204211,1778691038000,-305020.56617958,0.000145,2]
[422204208,1778691038000,-500.0,0.00014499,2]
[422204210,1778691038000,-500.0,0.00014499,2]
[422204209,1778691038000,-233.99417586,0.00014499,2]
[422204193,1778691038000,-500.0,0.00014499,2]